[Event "*** Titled Tuesday Blitz"]
[Site "Chess.com"]
[Date "2020.05.05"]
[Round "7"]
[White "Enriquack"]
[Black "Kapibara_Warri0r"]
[Result "0-1"]
[WhiteElo "2246"]
[BlackElo "2113"]
[TimeControl "180+1"]
[EndTime "11:17:35 PDT"]
[Termination "Kapibara_Warri0r won by resignation"]

1. e4 {[%clk 0:03:00.9]} 1... e5 {[%clk 0:02:59.2]} 2. Nf3 {[%clk 0:03:00.9]}
2... Nc6 {[%clk 0:02:59]} 3. Bb5 {[%clk 0:03:01]} 3... a6 {[%clk 0:02:57.4]} 4.
Ba4 {[%clk 0:03:00.7]} 4... g6 {[%clk 0:02:57]} 5. O-O {[%clk 0:02:59.5]} 5...
Bg7 {[%clk 0:02:55.1]} 6. c3 {[%clk 0:02:59.2]} 6... d6 {[%clk 0:02:54]} 7. d4
{[%clk 0:02:58.7]} 7... Bd7 {[%clk 0:02:53.6]} 8. Re1 {[%clk 0:02:51.8]} 8...
Nge7 {[%clk 0:02:50.5]} 9. h3 {[%clk 0:02:46.2]} 9... O-O {[%clk 0:02:49.3]} 10.
Bg5 {[%clk 0:02:39.6]} 10... h6 {[%clk 0:02:33.3]} 11. Bh4 {[%clk 0:02:39.2]}
11... g5 {[%clk 0:02:32.8]} 12. Bg3 {[%clk 0:02:39.5]} 12... Ng6 {[%clk
0:02:31.4]} 13. Bb3 {[%clk 0:02:27.6]} 13... g4 {[%clk 0:02:26.1]} 14. hxg4
{[%clk 0:02:24.4]} 14... Bxg4 {[%clk 0:02:27]} 15. dxe5 {[%clk 0:02:07.4]} 15...
Ncxe5 {[%clk 0:02:21.9]} 16. Nbd2 {[%clk 0:02:05.6]} 16... h5 {[%clk 0:02:10.5]}
17. Qc2 {[%clk 0:01:56.5]} 17... Nxf3+ {[%clk 0:02:08.5]} 18. Nxf3 {[%clk
0:01:53.4]} 18... Bxf3 {[%clk 0:02:07.6]} 19. gxf3 {[%clk 0:01:52.8]} 19... h4
{[%clk 0:02:06.9]} 20. Bh2 {[%clk 0:01:49.6]} 20... Qf6 {[%clk 0:01:59.8]} 21.
Qe2 {[%clk 0:01:42.9]} 21... Nf4 {[%clk 0:01:56.9]} 22. Qe3 {[%clk 0:01:41.4]}
22... Bh6 {[%clk 0:01:53.5]} 23. Kh1 {[%clk 0:01:41.4]} 23... Kh8 {[%clk
0:01:50.9]} 24. e5 {[%clk 0:01:37.1]} 24... Qg5 {[%clk 0:01:37.7]} 25. Rg1
{[%clk 0:01:02.3]} 25... Qxe5 {[%clk 0:01:35.7]} 26. Qxe5+ {[%clk 0:01:00.9]}
26... dxe5 {[%clk 0:01:35.2]} 27. Rae1 {[%clk 0:01:01.3]} 27... Rae8 {[%clk
0:01:32.2]} 28. Rg4 {[%clk 0:00:58.1]} 28... Ng6 {[%clk 0:01:28.5]} 29. Bxf7
{[%clk 0:00:53]} 29... Rxf7 {[%clk 0:01:25.7]} 30. Rxg6 {[%clk 0:00:53.2]} 30...
Kh7 {[%clk 0:01:25.4]} 31. Rg4 {[%clk 0:00:49.8]} 31... Rxf3 {[%clk 0:01:24.1]}
32. Rxh4 {[%clk 0:00:49.8]} 32... Rxf2 {[%clk 0:01:23.5]} 33. Bxe5 {[%clk
0:00:44.1]} 33... Rf5 {[%clk 0:00:56.1]} 34. Bg3 {[%clk 0:00:34.5]} 34... Rxe1+
{[%clk 0:00:53.8]} 0-1

[Event "*** Titled Tuesday Blitz"]
[Site "Chess.com"]
[Date "2020.05.05"]
[Round "7"]
[White "Richarzard69"]
[Black "sergeikim"]
[Result "0-1"]
[WhiteElo "2318"]
[BlackElo "2478"]
[TimeControl "180+1"]
[EndTime "11:17:42 PDT"]
[Termination "sergeikim won by resignation"]

1. Nf3 {[%clk 0:03:00.9]} 1... Nf6 {[%clk 0:02:59.1]} 2. c4 {[%clk 0:03:00.7]}
2... g6 {[%clk 0:02:58.9]} 3. Nc3 {[%clk 0:03:00.7]} 3... Bg7 {[%clk 0:02:59]}
4. e4 {[%clk 0:03:00.8]} 4... d6 {[%clk 0:02:59]} 5. d4 {[%clk 0:03:00.6]} 5...
O-O {[%clk 0:02:58.7]} 6. Be2 {[%clk 0:03:01.2]} 6... e5 {[%clk 0:02:57.9]} 7.
dxe5 {[%clk 0:03:02.1]} 7... dxe5 {[%clk 0:02:57.2]} 8. Qxd8 {[%clk 0:03:01.6]}
8... Rxd8 {[%clk 0:02:56.3]} 9. Bg5 {[%clk 0:03:02.5]} 9... c6 {[%clk
0:02:53.2]} 10. Nxe5 {[%clk 0:03:02.1]} 10... Re8 {[%clk 0:02:47.2]} 11. O-O-O
{[%clk 0:03:02.2]} 11... Na6 {[%clk 0:02:47.1]} 12. f4 {[%clk 0:02:48.8]} 12...
Nc5 {[%clk 0:02:44.6]} 13. Bf3 {[%clk 0:02:48.6]} 13... h6 {[%clk 0:02:43.8]}
14. Bh4 {[%clk 0:02:45.6]} 14... g5 {[%clk 0:02:42.7]} 15. fxg5 {[%clk
0:02:33.1]} 15... hxg5 {[%clk 0:02:41.5]} 16. Bg3 {[%clk 0:02:30.2]} 16... g4
{[%clk 0:02:36.7]} 17. Be2 {[%clk 0:02:19]} 17... Ncxe4 {[%clk 0:02:35]} 18.
Nxe4 {[%clk 0:02:13]} 18... Nxe4 {[%clk 0:02:34.8]} 19. Nxg4 {[%clk 0:01:42]}
19... f5 {[%clk 0:01:52.3]} 20. Ne3 {[%clk 0:00:28.9]} 20... Bh6 {[%clk
0:01:40.3]} 21. Rd3 {[%clk 0:00:22.8]} 21... Nxg3 {[%clk 0:01:38.4]} 22. hxg3
{[%clk 0:00:22.6]} 22... Bxe3+ {[%clk 0:01:37.5]} 23. Kd1 {[%clk 0:00:23.1]}
23... Bg5 {[%clk 0:01:27.5]} 24. Bh5 {[%clk 0:00:21.4]} 24... Rd8 {[%clk
0:01:19.6]} 25. Rxd8+ {[%clk 0:00:19.5]} 25... Bxd8 {[%clk 0:01:19]} 26. g4
{[%clk 0:00:19.4]} 26... fxg4 {[%clk 0:01:13]} 27. Re1 {[%clk 0:00:19.5]} 27...
Bd7 {[%clk 0:01:09.6]} 28. Re5 {[%clk 0:00:17.3]} 28... Bf6 {[%clk 0:01:07]} 29.
Re4 {[%clk 0:00:15.1]} 29... Rd8 {[%clk 0:01:05]} 30. Kc1 {[%clk 0:00:14.4]}
30... Bf5 {[%clk 0:00:59.3]} 31. Re1 {[%clk 0:00:13.9]} 31... Bg5+ {[%clk
0:00:57.6]} 0-1

[Event "*** Titled Tuesday Blitz"]
[Site "Chess.com"]
[Date "2020.05.05"]
[Round "7"]
[White "Chessalary"]
[Black "Azoulas1"]
[Result "1-0"]
[WhiteElo "2171"]
[BlackElo "1895"]
[TimeControl "180+1"]
[EndTime "11:17:43 PDT"]
[Termination "Chessalary won by checkmate"]

1. e4 {[%clk 0:03:00.9]} 1... c5 {[%clk 0:03:00]} 2. Nf3 {[%clk 0:02:49.7]} 2...
e6 {[%clk 0:02:58.7]} 3. d4 {[%clk 0:02:50]} 3... cxd4 {[%clk 0:02:57.4]} 4.
Nxd4 {[%clk 0:02:50.9]} 4... Nf6 {[%clk 0:02:57.1]} 5. Nc3 {[%clk 0:02:50.9]}
5... Bb4 {[%clk 0:02:55.4]} 6. e5 {[%clk 0:02:47.9]} 6... Nd5 {[%clk 0:02:55]}
7. Qg4 {[%clk 0:02:45.8]} 7... Nxc3 {[%clk 0:02:54.2]} 8. Qxg7 {[%clk
0:02:43.2]} 8... Rf8 {[%clk 0:02:51.8]} 9. a3 {[%clk 0:02:40]} 9... Nb5+ {[%clk
0:02:50.4]} 10. axb4 {[%clk 0:02:39.7]} 10... Nxd4 {[%clk 0:02:50.8]} 11. c3
{[%clk 0:02:24.5]} 11... Nf5 {[%clk 0:02:45.8]} 12. Qxh7 {[%clk 0:02:23.7]}
12... Qc7 {[%clk 0:02:43.3]} 13. f4 {[%clk 0:02:05.9]} 13... Nc6 {[%clk
0:02:41.2]} 14. Bd3 {[%clk 0:02:05.7]} 14... Nfe7 {[%clk 0:02:36.4]} 15. O-O
{[%clk 0:02:01.1]} 15... b6 {[%clk 0:02:35.1]} 16. Be4 {[%clk 0:01:45.2]} 16...
Bb7 {[%clk 0:02:32.8]} 17. Be3 {[%clk 0:01:44.6]} 17... O-O-O {[%clk 0:02:29.7]}
18. Qh4 {[%clk 0:01:30.8]} 18... Rh8 {[%clk 0:02:27]} 19. Qf2 {[%clk 0:01:26.7]}
19... Rdg8 {[%clk 0:02:25]} 20. Ra3 {[%clk 0:01:10.7]} 20... Kb8 {[%clk
0:02:23.3]} 21. Rfa1 {[%clk 0:01:10.5]} 21... Rg7 {[%clk 0:02:16.4]} 22. b5
{[%clk 0:00:51.8]} 22... Na5 {[%clk 0:02:13.2]} 23. Bxb7 {[%clk 0:00:52.2]}
23... Qxb7 {[%clk 0:02:11.1]} 24. b4 {[%clk 0:00:52.6]} 24... Rhg8 {[%clk
0:02:07.9]} 25. g3 {[%clk 0:00:50.5]} 25... Nf5 {[%clk 0:02:00.1]} 26. bxa5
{[%clk 0:00:48.8]} 26... Nxg3 {[%clk 0:01:57.5]} 27. hxg3 {[%clk 0:00:37.4]}
27... Rxg3+ {[%clk 0:01:56.2]} 28. Kf1 {[%clk 0:00:37.9]} 28... Rg2 {[%clk
0:01:54.6]} 29. axb6 {[%clk 0:00:29.3]} 29... Rxf2+ {[%clk 0:01:52.7]} 30. Bxf2
{[%clk 0:00:29.7]} 30... axb6 {[%clk 0:01:49]} 31. Ra6 {[%clk 0:00:28.5]} 31...
Qg2+ {[%clk 0:01:44.1]} 32. Ke2 {[%clk 0:00:26.3]} 32... Qe4+ {[%clk 0:01:40.5]}
33. Kf1 {[%clk 0:00:26.1]} 33... Qd3+ {[%clk 0:01:33.5]} 34. Ke1 {[%clk
0:00:23]} 34... Qxc3+ {[%clk 0:01:32.3]} 35. Ke2 {[%clk 0:00:23.4]} 35... Qc2+
{[%clk 0:01:27.8]} 36. Ke1 {[%clk 0:00:21.4]} 36... Qd3 {[%clk 0:01:25]} 37.
Ra8+ {[%clk 0:00:18.8]} 37... Kc7 {[%clk 0:01:12.1]} 38. R1a7# {[%clk
0:00:19.7]} 1-0

[Event "*** Titled Tuesday Blitz"]
[Site "Chess.com"]
[Date "2020.05.05"]
[Round "7"]
[White "Paladin61"]
[Black "ENEASZ"]
[Result "1-0"]
[WhiteElo "2662"]
[BlackElo "2499"]
[TimeControl "180+1"]
[EndTime "11:17:45 PDT"]
[Termination "Paladin61 won by resignation"]

1. d4 {[%clk 0:03:00.9]} 1... d5 {[%clk 0:02:58.7]} 2. c4 {[%clk 0:03:00.9]}
2... e6 {[%clk 0:02:58.9]} 3. Nf3 {[%clk 0:03:00.9]} 3... Nf6 {[%clk 0:02:58.9]}
4. g3 {[%clk 0:03:01.3]} 4... Be7 {[%clk 0:02:58.5]} 5. Bg2 {[%clk 0:03:01.5]}
5... O-O {[%clk 0:02:59.2]} 6. O-O {[%clk 0:03:01.5]} 6... dxc4 {[%clk
0:02:59.8]} 7. Qc2 {[%clk 0:03:00.8]} 7... b5 {[%clk 0:02:59.8]} 8. a4 {[%clk
0:02:51.4]} 8... b4 {[%clk 0:02:58.2]} 9. Nfd2 {[%clk 0:02:49.6]} 9... c6 {[%clk
0:02:47.5]} 10. Nxc4 {[%clk 0:02:48.3]} 10... Qxd4 {[%clk 0:02:46.9]} 11. Rd1
{[%clk 0:02:22.9]} 11... Qg4 {[%clk 0:02:46.2]} 12. Nbd2 {[%clk 0:01:46.1]}
12... Ba6 {[%clk 0:02:33.4]} 13. b3 {[%clk 0:01:44.5]} 13... Rc8 {[%clk
0:02:29.1]} 14. Bb2 {[%clk 0:01:43]} 14... Nbd7 {[%clk 0:02:29.2]} 15. Rac1
{[%clk 0:01:25.9]} 15... Rab8 {[%clk 0:02:16.7]} 16. e4 {[%clk 0:01:24.1]} 16...
Qg6 {[%clk 0:01:57.1]} 17. h3 {[%clk 0:01:03.6]} 17... Bc5 {[%clk 0:01:55.6]}
18. Nf1 {[%clk 0:00:54.7]} 18... h5 {[%clk 0:01:21.9]} 19. Nfe3 {[%clk
0:00:50.5]} 19... Bf8 {[%clk 0:01:03.8]} 20. Nd6 {[%clk 0:00:39.7]} 20... Bxd6
{[%clk 0:00:18.4]} 21. Rxd6 {[%clk 0:00:36.9]} 21... h4 {[%clk 0:00:19.3]} 22.
g4 {[%clk 0:00:34.8]} 22... Bb7 {[%clk 0:00:19.5]} 23. e5 {[%clk 0:00:30.9]}
23... Qxc2 {[%clk 0:00:18.2]} 24. Rxc2 {[%clk 0:00:31]} 1-0

[Event "*** Titled Tuesday Blitz"]
[Site "Chess.com"]
[Date "2020.05.05"]
[Round "7"]
[White "swisspower96"]
[Black "MasterKroket"]
[Result "1-0"]
[WhiteElo "2605"]
[BlackElo "2444"]
[TimeControl "180+1"]
[EndTime "11:17:47 PDT"]
[Termination "swisspower96 won by resignation"]

1. d4 {[%clk 0:03:00.9]} 1... Nf6 {[%clk 0:02:59.3]} 2. c4 {[%clk 0:03:01.4]}
2... e6 {[%clk 0:02:59.4]} 3. Nf3 {[%clk 0:03:01.6]} 3... b6 {[%clk 0:02:58.5]}
4. g3 {[%clk 0:03:01.7]} 4... Bb7 {[%clk 0:02:59]} 5. Bg2 {[%clk 0:03:01.6]}
5... Be7 {[%clk 0:02:59.7]} 6. O-O {[%clk 0:03:02.1]} 6... O-O {[%clk
0:03:00.4]} 7. Re1 {[%clk 0:03:02.1]} 7... Na6 {[%clk 0:02:59.5]} 8. h4 {[%clk
0:03:00.8]} 8... c5 {[%clk 0:02:55.1]} 9. d5 {[%clk 0:03:01]} 9... exd5 {[%clk
0:02:55.3]} 10. Nh2 {[%clk 0:03:01.4]} 10... Nc7 {[%clk 0:02:39.1]} 11. Nc3
{[%clk 0:03:00]} 11... Ne4 {[%clk 0:02:32.3]} 12. Nxd5 {[%clk 0:02:57]} 12...
Nxd5 {[%clk 0:02:32.4]} 13. cxd5 {[%clk 0:02:57.4]} 13... Nd6 {[%clk 0:02:26.9]}
14. e4 {[%clk 0:02:56.8]} 14... Nc4 {[%clk 0:02:11.5]} 15. Qc2 {[%clk
0:02:48.7]} 15... Na5 {[%clk 0:02:04.5]} 16. e5 {[%clk 0:02:26.5]} 16... d6
{[%clk 0:02:04.8]} 17. e6 {[%clk 0:02:23]} 17... fxe6 {[%clk 0:01:58.5]} 18.
Rxe6 {[%clk 0:02:23.9]} 18... Bc8 {[%clk 0:01:37.9]} 19. Re1 {[%clk 0:02:16.8]}
19... Bf5 {[%clk 0:01:38.2]} 20. Qe2 {[%clk 0:02:13.1]} 20... Bf6 {[%clk
0:01:31]} 21. Bf4 {[%clk 0:01:58.1]} 21... c4 {[%clk 0:01:23]} 22. Nf3 {[%clk
0:01:52.8]} 22... Re8 {[%clk 0:01:16.6]} 23. Qd2 {[%clk 0:01:45.4]} 23... Be4
{[%clk 0:01:06.9]} 24. Nd4 {[%clk 0:01:41.9]} 24... Bxg2 {[%clk 0:01:06.7]} 25.
Kxg2 {[%clk 0:01:42.8]} 25... Be5 {[%clk 0:00:47.9]} 26. Ne6 {[%clk 0:01:36.6]}
26... Qf6 {[%clk 0:00:48.1]} 27. Bxe5 {[%clk 0:01:36.6]} 27... dxe5 {[%clk
0:00:43]} 28. Nc7 {[%clk 0:01:37.1]} 28... e4 {[%clk 0:00:37.2]} 29. Nxa8 {[%clk
0:01:29.4]} 29... Qf3+ {[%clk 0:00:37]} 30. Kg1 {[%clk 0:01:29.4]} 30... Rxa8
{[%clk 0:00:37.1]} 31. Re3 {[%clk 0:01:28.2]} 31... Qf5 {[%clk 0:00:34.4]} 32.
Rae1 {[%clk 0:01:28.3]} 32... Re8 {[%clk 0:00:32.9]} 33. Qd4 {[%clk 0:01:26.3]}
33... Re5 {[%clk 0:00:24.9]} 34. Rxe4 {[%clk 0:01:26.4]} 34... Rxd5 {[%clk
0:00:25.3]} 35. Re8+ {[%clk 0:01:26.4]} 35... Kf7 {[%clk 0:00:25.4]} 36. R1e7+
{[%clk 0:01:27]} 36... Kg6 {[%clk 0:00:24.8]} 37. Qxg7+ {[%clk 0:01:23]} 37...
Kh5 {[%clk 0:00:25.2]} 38. Qxh7+ {[%clk 0:01:23.3]} 38... Kg4 {[%clk 0:00:25.4]}
39. Rg8+ {[%clk 0:01:18.3]} 39... Kh3 {[%clk 0:00:25.4]} 40. Qxf5+ {[%clk
0:01:16.5]} 40... Rxf5 {[%clk 0:00:25.6]} 41. Re3 {[%clk 0:01:13.2]} 41... Nc6
{[%clk 0:00:19.6]} 42. g4+ {[%clk 0:01:12.8]} 1-0

[Event "*** Titled Tuesday Blitz"]
[Site "Chess.com"]
[Date "2020.05.05"]
[Round "7"]
[White "Kaponov"]
[Black "mitraasz"]
[Result "0-1"]
[WhiteElo "2064"]
[BlackElo "2214"]
[TimeControl "180+1"]
[EndTime "11:17:49 PDT"]
[Termination "mitraasz won by resignation"]

1. e4 {[%clk 0:03:00.7]} 1... c5 {[%clk 0:02:59.9]} 2. c3 {[%clk 0:03:00.7]}
2... d6 {[%clk 0:02:59.9]} 3. Nf3 {[%clk 0:03:00.7]} 3... Nf6 {[%clk 0:03:00.2]}
4. Bd3 {[%clk 0:02:59.5]} 4... g6 {[%clk 0:03:00.5]} 5. Bc2 {[%clk 0:02:59.5]}
5... Bg7 {[%clk 0:03:00.9]} 6. O-O {[%clk 0:02:59.9]} 6... O-O {[%clk
0:03:00.5]} 7. h3 {[%clk 0:03:00.3]} 7... Nc6 {[%clk 0:03:00.5]} 8. d4 {[%clk
0:02:59.7]} 8... b6 {[%clk 0:03:00.1]} 9. Be3 {[%clk 0:02:56.5]} 9... Bb7 {[%clk
0:02:58.3]} 10. Nbd2 {[%clk 0:02:56.6]} 10... cxd4 {[%clk 0:02:57.1]} 11. cxd4
{[%clk 0:02:55.9]} 11... Rc8 {[%clk 0:02:55.8]} 12. Rc1 {[%clk 0:02:54.9]} 12...
Ba6 {[%clk 0:02:52.4]} 13. Re1 {[%clk 0:02:51.9]} 13... Nb4 {[%clk 0:02:52.6]}
14. a3 {[%clk 0:02:33.1]} 14... Nxc2 {[%clk 0:02:50.3]} 15. Rxc2 {[%clk
0:02:33]} 15... Bd3 {[%clk 0:02:44.2]} 16. Rxc8 {[%clk 0:02:32.8]} 16... Qxc8
{[%clk 0:02:45.1]} 17. Bf4 {[%clk 0:02:20.6]} 17... Qa6 {[%clk 0:02:25.7]} 18.
Qb3 {[%clk 0:02:09.8]} 18... Rc8 {[%clk 0:02:20.4]} 19. Re3 {[%clk 0:01:28.3]}
19... Rc1+ {[%clk 0:02:12.7]} 20. Kh2 {[%clk 0:01:28.2]} 20... Bb5 {[%clk
0:02:01.4]} 21. Rc3 {[%clk 0:01:14.8]} 21... Rxc3 {[%clk 0:02:00.1]} 22. Qxc3
{[%clk 0:01:14.2]} 22... Nh5 {[%clk 0:02:00.2]} 23. Be3 {[%clk 0:00:45.9]} 23...
Qb7 {[%clk 0:01:52.8]} 24. e5 {[%clk 0:00:24.7]} 24... Bc6 {[%clk 0:01:40.1]}
25. b3 {[%clk 0:00:08.2]} 25... dxe5 {[%clk 0:01:31.8]} 26. dxe5 {[%clk
0:00:08.2]} 26... f6 {[%clk 0:01:27.5]} 27. exf6 {[%clk 0:00:08.1]} 27... Nxf6
{[%clk 0:01:22.3]} 28. Bd4 {[%clk 0:00:07.9]} 28... Nd5 {[%clk 0:01:10]} 29.
Bxg7 {[%clk 0:00:06.8]} 29... Nxc3 {[%clk 0:01:08.5]} 0-1

[Event "*** Titled Tuesday Blitz"]
[Site "Chess.com"]
[Date "2020.05.05"]
[Round "7"]
[White "SirMittensofMittensville"]
[Black "aakankshachess"]
[Result "1-0"]
[WhiteElo "2672"]
[BlackElo "2509"]
[TimeControl "180+1"]
[EndTime "11:17:50 PDT"]
[Termination "SirMittensofMittensville won by resignation"]

1. e4 {[%clk 0:03:00.9]} 1... e5 {[%clk 0:02:59.8]} 2. Nf3 {[%clk 0:03:00.9]}
2... Nc6 {[%clk 0:02:59.4]} 3. Bc4 {[%clk 0:03:01.5]} 3... Nf6 {[%clk
0:02:58.4]} 4. d3 {[%clk 0:03:02.1]} 4... Bc5 {[%clk 0:02:57.8]} 5. c3 {[%clk
0:03:02.3]} 5... O-O {[%clk 0:02:55.5]} 6. O-O {[%clk 0:03:02.9]} 6... d5 {[%clk
0:02:53]} 7. exd5 {[%clk 0:03:00.7]} 7... Nxd5 {[%clk 0:02:53.9]} 8. Re1 {[%clk
0:03:01.4]} 8... Re8 {[%clk 0:02:51.2]} 9. d4 {[%clk 0:03:01.1]} 9... Bb6 {[%clk
0:02:42.3]} 10. dxe5 {[%clk 0:02:40.4]} 10... Be6 {[%clk 0:02:41.5]} 11. Bg5
{[%clk 0:02:32.2]} 11... Qd7 {[%clk 0:02:41.1]} 12. Nbd2 {[%clk 0:02:30.8]}
12... Na5 {[%clk 0:02:40.1]} 13. Bf1 {[%clk 0:02:23.9]} 13... c5 {[%clk
0:02:36.6]} 14. Ne4 {[%clk 0:02:18.4]} 14... Nc6 {[%clk 0:02:32.3]} 15. Nd6
{[%clk 0:02:04.5]} 15... Rf8 {[%clk 0:02:23]} 16. Nc4 {[%clk 0:01:53.6]} 16...
Bc7 {[%clk 0:02:20.9]} 17. a4 {[%clk 0:01:49.5]} 17... h6 {[%clk 0:02:14.7]} 18.
Bh4 {[%clk 0:01:46]} 18... b6 {[%clk 0:02:14.7]} 19. Qc2 {[%clk 0:01:40.9]}
19... Bf5 {[%clk 0:02:11.8]} 20. Qd2 {[%clk 0:01:38.9]} 20... Qe6 {[%clk
0:02:10.5]} 21. Rad1 {[%clk 0:01:38.1]} 21... Nde7 {[%clk 0:02:09.2]} 22. Nd6
{[%clk 0:01:34.6]} 22... Bg4 {[%clk 0:02:06.8]} 23. Bc4 {[%clk 0:01:24]} 23...
Qg6 {[%clk 0:02:05.9]} 24. Qf4 {[%clk 0:01:22.7]} 24... Bxf3 {[%clk 0:01:58.3]}
25. Qxf3 {[%clk 0:01:18.9]} 25... Na5 {[%clk 0:00:54.4]} 26. Bxe7 {[%clk
0:01:08.2]} 26... Nxc4 {[%clk 0:00:52]} 27. Nxc4 {[%clk 0:01:07.7]} 27... Rfe8
{[%clk 0:00:52.3]} 28. Rd7 {[%clk 0:01:03.2]} 28... Qe6 {[%clk 0:00:48.3]} 29.
Rxc7 {[%clk 0:01:02.5]} 29... Qxc4 {[%clk 0:00:48.4]} 30. Qe4 {[%clk 0:01:00.6]}
30... Qe6 {[%clk 0:00:47]} 31. f4 {[%clk 0:00:57.5]} 31... Rab8 {[%clk
0:00:46.1]} 32. f5 {[%clk 0:00:55.8]} 32... Qb3 {[%clk 0:00:44.5]} 33. e6 {[%clk
0:00:52]} 33... fxe6 {[%clk 0:00:32.8]} 34. fxe6 {[%clk 0:00:51.6]} 34... Qxb2
{[%clk 0:00:30.2]} 35. Bf6 {[%clk 0:00:49.2]} 1-0

[Event "*** Titled Tuesday Blitz"]
[Site "Chess.com"]
[Date "2020.05.05"]
[Round "7"]
[White "Char_dasha"]
[Black "robertofabregas"]
[Result "1-0"]
[WhiteElo "2238"]
[BlackElo "2081"]
[TimeControl "180+1"]
[EndTime "11:17:50 PDT"]
[Termination "Char_dasha won by resignation"]

1. d4 {[%clk 0:02:53.8]} 1... Nf6 {[%clk 0:02:58.1]} 2. c4 {[%clk 0:02:53.3]}
2... e6 {[%clk 0:02:55.6]} 3. Nc3 {[%clk 0:02:53.4]} 3... Bb4 {[%clk 0:02:54.6]}
4. Qc2 {[%clk 0:02:53.6]} 4... b6 {[%clk 0:02:53.4]} 5. e4 {[%clk 0:02:35.4]}
5... Bxc3+ {[%clk 0:02:37.5]} 6. bxc3 {[%clk 0:02:34.9]} 6... h6 {[%clk
0:02:22]} 7. e5 {[%clk 0:02:28.9]} 7... Ng8 {[%clk 0:02:18.4]} 8. Qe4 {[%clk
0:02:19.6]} 8... c6 {[%clk 0:02:09.1]} 9. Qg4 {[%clk 0:02:17.5]} 9... Kf8 {[%clk
0:02:02.4]} 10. Nf3 {[%clk 0:02:00.3]} 10... c5 {[%clk 0:01:55.1]} 11. h4 {[%clk
0:01:45.7]} 11... Bb7 {[%clk 0:01:49]} 12. h5 {[%clk 0:01:44.6]} 12... Bxf3
{[%clk 0:01:38.2]} 13. gxf3 {[%clk 0:01:41.7]} 13... f5 {[%clk 0:01:35.2]} 14.
exf6 {[%clk 0:01:25.8]} 14... Nxf6 {[%clk 0:01:31.5]} 15. Qf4 {[%clk 0:01:24.2]}
15... Nc6 {[%clk 0:01:24.2]} 16. Bd2 {[%clk 0:01:22.8]} 16... Qb8 {[%clk
0:01:21.7]} 17. Qh4 {[%clk 0:01:18.9]} 17... e5 {[%clk 0:00:58.7]} 18. d5 {[%clk
0:01:08.4]} 18... Ne7 {[%clk 0:00:53.5]} 19. Bd3 {[%clk 0:01:06.5]} 19... d6
{[%clk 0:00:49.5]} 20. Ke2 {[%clk 0:01:06.5]} 20... Qe8 {[%clk 0:00:44.5]} 21.
Rag1 {[%clk 0:01:03]} 21... a6 {[%clk 0:00:36.5]} 22. Rg3 {[%clk 0:00:57.5]}
22... b5 {[%clk 0:00:33.4]} 23. Rhg1 {[%clk 0:00:54.8]} 23... Rg8 {[%clk
0:00:28.5]} 24. Bxh6 {[%clk 0:00:35.5]} 24... Qf7 {[%clk 0:00:26.8]} 25. Rxg7
{[%clk 0:00:34.6]} 25... Rxg7 {[%clk 0:00:26.7]} 26. Rxg7 {[%clk 0:00:34.8]}
26... Qxg7 {[%clk 0:00:26.6]} 27. Qxf6+ {[%clk 0:00:35.3]} 27... Ke8 {[%clk
0:00:24.8]} 1-0

[Event "*** Titled Tuesday Blitz"]
[Site "Chess.com"]
[Date "2020.05.05"]
[Round "7"]
[White "ElGasanov"]
[Black "mbachez"]
[Result "1-0"]
[WhiteElo "2711"]
[BlackElo "2442"]
[TimeControl "180+1"]
[EndTime "11:17:52 PDT"]
[Termination "ElGasanov won by resignation"]

1. d4 {[%clk 0:03:00.9]} 1... Nf6 {[%clk 0:02:54.8]} 2. Nf3 {[%clk 0:03:01.2]}
2... d5 {[%clk 0:02:54.5]} 3. Bg5 {[%clk 0:03:00.6]} 3... e6 {[%clk 0:02:52.1]}
4. e3 {[%clk 0:03:00.1]} 4... Be7 {[%clk 0:02:52.2]} 5. c4 {[%clk 0:03:00.2]}
5... O-O {[%clk 0:02:52.2]} 6. Nc3 {[%clk 0:03:00.5]} 6... c6 {[%clk 0:02:51.3]}
7. Qc2 {[%clk 0:02:58.8]} 7... Nbd7 {[%clk 0:02:51.2]} 8. Rd1 {[%clk 0:02:58.2]}
8... h6 {[%clk 0:02:50.8]} 9. Bf4 {[%clk 0:02:57.7]} 9... Re8 {[%clk 0:02:45.3]}
10. Bd3 {[%clk 0:02:55.8]} 10... c5 {[%clk 0:02:43.3]} 11. cxd5 {[%clk
0:02:49.8]} 11... exd5 {[%clk 0:02:28.6]} 12. dxc5 {[%clk 0:02:44.7]} 12... Nxc5
{[%clk 0:02:28.1]} 13. Bb5 {[%clk 0:02:43.4]} 13... Bd7 {[%clk 0:02:19.5]} 14.
O-O {[%clk 0:02:42.8]} 14... Bxb5 {[%clk 0:02:01.6]} 15. Nxb5 {[%clk 0:02:43]}
15... Ne6 {[%clk 0:01:50.5]} 16. Be5 {[%clk 0:02:42.3]} 16... a6 {[%clk
0:01:46.7]} 17. Nbd4 {[%clk 0:02:42.4]} 17... Ne4 {[%clk 0:01:40.2]} 18. Nf5
{[%clk 0:02:33.8]} 18... Bf8 {[%clk 0:01:28.8]} 19. Qb3 {[%clk 0:02:28.8]} 19...
g6 {[%clk 0:01:14.5]} 20. Rxd5 {[%clk 0:02:24.9]} 20... Qc8 {[%clk 0:00:51.6]}
21. N5d4 {[%clk 0:02:18.6]} 21... N6g5 {[%clk 0:00:45.8]} 22. Rd1 {[%clk
0:02:05.5]} 22... Qg4 {[%clk 0:00:44.5]} 23. Bg3 {[%clk 0:01:46.8]} 23... Rad8
{[%clk 0:00:33.1]} 24. Rxd8 {[%clk 0:01:31.1]} 24... Rxd8 {[%clk 0:00:32.5]} 25.
Qxb7 {[%clk 0:01:28.4]} 25... h5 {[%clk 0:00:20.3]} 26. h3 {[%clk 0:01:21.3]}
26... Nxf3+ {[%clk 0:00:16.7]} 27. gxf3 {[%clk 0:01:17.4]} 27... Qxh3 {[%clk
0:00:16.3]} 28. Qxe4 {[%clk 0:01:17.9]} 28... Bg7 {[%clk 0:00:14.1]} 29. Qh4
{[%clk 0:01:04.8]} 29... Qd7 {[%clk 0:00:08.9]} 30. Rd2 {[%clk 0:01:04.4]} 30...
Rc8 {[%clk 0:00:08.8]} 31. Kg2 {[%clk 0:01:00.4]} 31... Rc1 {[%clk 0:00:07.4]}
32. Nb3 {[%clk 0:01:00.6]} 1-0